bitfinex-derivatives/quotes_BTCF0:USTF0_20250517
["timestamp","ask_amount","ask_price","bid_price","bid_amount"]
[1747458445086,0.77970056,103670.0,103660.0,0.7562863]
[1747458445289,0.77970056,103670.0,103660.0,0.8179463]
[1747458445490,1.14050056,103670.0,103660.0,0.4010263]
[1747458445794,1.14050056,103670.0,103660.0,0.44364596]
[1747458445988,1.14050056,103670.0,103660.0,0.4010263]
[1747458446188,1.04402056,103670.0,103660.0,0.3045463]
[1747458447893,1.01355638,103670.0,103660.0,0.3045463]
[1747458448891,0.95107186,103670.0,103660.0,0.3045463]
[1747458450892,0.830954,103670.0,103660.0,0.3045463]
[1747458453295,0.89343852,103670.0,103660.0,0.3045463]
[1747458454695,1.01355638,103670.0,103660.0,0.3045463]
[1747458457203,1.01355638,103670.0,103660.0,0.2080563]
[1747458458700,1.01355638,103670.0,103660.0,0.25545268]
[1747458459403,1.103876,103670.0,103660.0,0.25545268]
[1747458459796,1.103876,103670.0,103660.0,0.46385268]
[1747458460905,1.06697823,103670.0,103660.0,0.63984654]
[1747458462206,0.88697823,103670.0,103660.0,0.63984654]
[1747458463008,0.88697823,103670.0,103660.0,0.43144654]
[1747458463200,0.88697823,103670.0,103660.0,0.63984654]
[1747458463795,0.84393065,103670.0,103660.0,0.63984654]
[1747458463998,0.87923065,103670.0,103660.0,0.63984654]
[1747458466511,0.87923065,103670.0,103660.0,0.63980654]
[1747458466818,0.84848249,103670.0,103660.0,0.63980654]
[1747458467114,0.88338249,103670.0,103660.0,0.63980654]
[1747458467409,0.79306287,103670.0,103660.0,0.63980654]
[1747458467917,0.79306287,103670.0,103660.0,0.84828654]
[1747458468407,0.82076601,103670.0,103640.0,1.81296035]
[1747458468609,0.61617582,103650.0,103640.0,0.35840035]
[1747458468808,0.61617582,103650.0,103640.0,0.56676035]
[1747458469013,0.68657582,103650.0,103640.0,0.56676035]
[1747458469215,0.68657582,103650.0,103640.0,0.47025035]
[1747458469916,0.68657582,103650.0,103640.0,0.47325035]
[1747458470112,0.68657582,103650.0,103640.0,0.41984]
[1747458470113,0.99156707,103650.0,103640.0,0.41984]
[1747458470410,0.99156707,103650.0,103640.0,0.21448]
[1747458470713,0.99156707,103650.0,103640.0,0.006]
[1747458470912,0.99156707,103650.0,103640.0,0.26198773]
[1747458471112,0.99156707,103650.0,103640.0,0.21436]
[1747458472421,1.00621277,103650.0,103640.0,0.21436]
[1747458472715,1.03603938,103650.0,103640.0,0.006]
[1747458472918,1.02139368,103650.0,103640.0,0.006]
[1747458475807,1.02139368,103650.0,103640.0,0.05339896]
[1747458476117,1.02139368,103650.0,103640.0,0.006]
[1747458477316,1.03578706,103650.0,103640.0,0.006]
[1747458477910,1.1259269,103650.0,103640.0,0.006]
[1747458478211,1.1259269,103650.0,103640.0,0.07966935]
[1747458480212,0.1929105,103640.0,103630.0,0.44077648]
[1747458480419,0.1929105,103640.0,103630.0,0.48830088]
[1747458480420,0.68829502,103640.0,103630.0,0.48830088]
[1747458480719,0.72189502,103640.0,103630.0,0.48830088]
[1747458480911,0.72189502,103640.0,103630.0,0.27994088]
[1747458481110,0.72189502,103640.0,103630.0,0.48826088]
[1747458481316,0.82703584,103640.0,103630.0,0.39175088]
[1747458481818,0.82703584,103640.0,103630.0,0.39575088]
[1747458482219,0.79012812,103640.0,103630.0,0.26184088]
[1747458482421,0.79212812,103640.0,103630.0,0.26184088]
[1747458482721,0.79212812,103640.0,103630.0,0.26584088]
[1747458483223,0.79212812,103640.0,103630.0,0.37769088]
[1747458483824,0.79212812,103640.0,103630.0,0.21236]
[1747458484012,0.79212812,103640.0,103630.0,0.42068]
[1747458484321,0.83720761,103640.0,103630.0,0.32417]
[1747458484525,0.83720761,103640.0,103630.0,0.37160053]
[1747458485621,0.83720761,103640.0,103630.0,0.40760053]
[1747458486524,0.83720761,103640.0,103630.0,0.19928053]
[1747458486724,0.83720761,103640.0,103630.0,0.40760053]
[1747458487722,0.83720761,103640.0,103630.0,0.19928053]
[1747458488023,0.83720761,103640.0,103630.0,0.40760053]
[1747458489520,0.83720761,103640.0,103630.0,0.46888588]
[1747458489823,0.83720761,103640.0,103630.0,0.5471368]
[1747458490217,0.83720761,103640.0,103630.0,0.4506268]
[1747458491827,0.83720761,103640.0,103630.0,0.4146268]
[1747458492625,0.83720761,103640.0,103630.0,0.3952868]
[1747458493921,0.83720761,103640.0,103630.0,0.4331868]
[1747458495231,0.79414636,103640.0,103630.0,0.4331868]
[1747458495929,0.79414636,103640.0,103630.0,0.2248668]
[1747458496230,0.79414636,103640.0,103630.0,0.3366368]
[1747458497829,0.85418375,103640.0,103630.0,0.3366368]
[1747458498229,0.79169923,103640.0,103630.0,0.32443092]
[1747458498526,0.85418375,103640.0,103630.0,0.32443092]
[1747458498835,0.85418375,103640.0,103630.0,0.37147938]
[1747458500134,1.03418375,103640.0,103630.0,0.37147938]
[1747458501230,0.94404391,103640.0,103630.0,0.25532846]
[1747458502032,1.00652843,103640.0,103630.0,0.25528846]
[1747458502234,1.00652843,103640.0,103630.0,0.04704846]
[1747458502425,1.00652843,103640.0,103630.0,0.20824]
[1747458502832,1.00652843,103640.0,103630.0,0.30151392]
[1747458503133,1.0864974,103640.0,103630.0,0.30151392]
[1747458503634,0.96152836,103640.0,103630.0,0.30151392]
[1747458503835,1.0864974,103640.0,103630.0,0.30151392]
[1747458504736,1.0864974,103640.0,103630.0,0.37527475]
[1747458505134,1.0864974,103640.0,103630.0,0.16703475]
[1747458505334,1.0864974,103640.0,103630.0,0.42408455]
[1747458505837,1.4472974,103640.0,103630.0,0.42408455]
[1747458507838,1.4472974,103640.0,103630.0,0.21584455]
[1747458512346,1.4472974,103640.0,103630.0,0.11933455]
[1747458513933,0.69493832,103640.0,103630.0,0.11933455]
[1747458514136,1.41653832,103640.0,103630.0,0.11933455]
[1747458519338,1.41653832,103640.0,103630.0,0.0488098]
[1747458519553,0.1929292,103630.0,103620.0,0.57265922]
[1747458519743,0.73011372,103630.0,103620.0,0.6153027]
[1747458520640,0.73211372,103630.0,103620.0,0.6343027]
[1747458520843,0.73411372,103630.0,103620.0,0.6513027]
[1747458522348,0.824534,103630.0,103620.0,0.60610348]
[1747458522534,0.76204948,103630.0,103620.0,0.60610348]
[1747458522739,0.824534,103630.0,103620.0,0.60610348]
[1747458523233,0.921044,103630.0,103620.0,0.60610348]
[1747458523534,0.921044,103630.0,103620.0,0.77440642]
[1747458523737,0.88413204,103630.0,103620.0,0.77440642]
[1747458524048,0.88413204,103630.0,103620.0,0.82191485]
[1747458524943,1.0042499,103630.0,103620.0,0.82191485]
[1747458526349,0.89870143,103630.0,103620.0,0.82191485]
[1747458526545,0.96118595,103630.0,103620.0,0.40535485]
[1747458526746,0.96118595,103630.0,103620.0,0.82175485]
[1747458528843,1.04116186,103630.0,103620.0,0.82175485]
[1747458529542,1.00346186,103630.0,103620.0,0.82175485]
[1747458533050,1.00346186,103630.0,103620.0,0.61359485]
[1747458533255,1.00346186,103630.0,103620.0,0.82171485]
[1747458535046,1.00346186,103630.0,103620.0,0.61359485]
[1747458535247,1.00346186,103630.0,103620.0,0.82171485]
[1747458535752,0.91304158,103630.0,103620.0,0.82171485]
[1747458539548,0.95144158,103630.0,103620.0,0.82171485]
[1747458541158,0.95144158,103630.0,103620.0,0.61359485]
[1747458541350,0.95144158,103630.0,103620.0,0.82167485]
[1747458541551,1.04189122,103630.0,103620.0,0.40535485]
[1747458541749,1.04189122,103630.0,103620.0,0.57593485]
[1747458542355,1.04189122,103630.0,103620.0,0.74801485]
[1747458544062,1.00497948,103630.0,103620.0,0.74801485]
[1747458544254,1.00497948,103630.0,103620.0,0.78721485]
[1747458544571,1.00497948,103630.0,103620.0,0.57913485]
[1747458544751,1.00497948,103630.0,103620.0,0.78721485]
[1747458545263,0.91452984,103630.0,103620.0,0.78721485]
[1747458547059,0.87146545,103630.0,103620.0,0.78721485]
[1747458547361,0.87146545,103630.0,103620.0,0.82451485]
[1747458548654,0.80898093,103630.0,103620.0,0.82451485]
[1747458548957,0.87146545,103630.0,103620.0,0.82451485]
[1747458550163,0.90836545,103630.0,103620.0,0.82451485]
[1747458551060,0.54756545,103630.0,103620.0,0.82451485]
[1747458551359,0.90836545,103630.0,103620.0,0.82451485]
[1747458551567,0.84588093,103630.0,103620.0,0.82451485]
[1747458551756,0.90836545,103630.0,103620.0,0.82451485]
[1747458554363,0.54756545,103630.0,103620.0,0.82451485]
[1747458554560,0.90836545,103630.0,103620.0,0.82451485]
[1747458558068,0.90836545,103630.0,103620.0,1.01746275]
[1747458558767,0.90836545,103630.0,103620.0,0.82451485]
[1747458559870,0.86530116,103630.0,103620.0,0.82451485]
[1747458560968,0.86530116,103630.0,103620.0,0.61647485]
[1747458561170,0.86530116,103630.0,103620.0,0.82447485]
[1747458561566,0.86530116,103630.0,103620.0,0.33365485]
[1747458561973,0.86530116,103630.0,103620.0,0.45981137]
[1747458562172,0.9251833,103630.0,103620.0,0.45981137]
[1747458562473,0.88211882,103630.0,103620.0,0.44081137]
[1747458562674,0.88211882,103630.0,103620.0,0.48351137]
[1747458562869,0.88211882,103630.0,103620.0,0.46651137]
[1747458563174,0.88211882,103630.0,103620.0,0.46851137]
[1747458563175,0.8196343,103630.0,103620.0,0.46851137]
[1747458563474,0.88211882,103630.0,103620.0,0.54571137]
[1747458565670,1.00223668,103630.0,103620.0,0.37740843]
[1747458566676,1.00223668,103630.0,103620.0,0.54606843]
[1747458566874,1.00223668,103630.0,103620.0,0.05150843]
[1747458567074,1.0647212,103630.0,103620.0,0.05150843]
[1747458567379,1.03395966,103630.0,103620.0,0.05150843]
[1747458568268,1.03395966,103630.0,103620.0,0.25950843]
[1747458568869,0.9138418,103630.0,103620.0,0.25950843]
[1747458569763,0.9138418,103630.0,103620.0,0.05150843]
[1747458573781,0.9138418,103630.0,103620.0,0.2010672]
[1747458578282,1.06398912,103630.0,103620.0,0.1045372]
[1747458579495,1.06398912,103630.0,103620.0,0.1528437]
[1747458582784,1.42478912,103630.0,103620.0,0.1528437]
[1747458583671,1.42478912,103630.0,103620.0,0.12408422]
[1747458583876,1.42478912,103630.0,103620.0,0.18552058]
[1747458584682,1.54526044,103630.0,103620.0,0.18552058]
[1747458588088,1.42478912,103630.0,103620.0,0.18552058]
[1747458588988,1.42478912,103630.0,103620.0,0.13721408]
[1747458589186,1.42478912,103630.0,103620.0,0.04068408]
[1747458589484,0.1929478,103620.0,103610.0,0.04126511]
[1747458589690,0.75561684,103620.0,103610.0,0.08096511]
[1747458590079,0.6306478,103620.0,103610.0,0.11836511]
[1747458590280,0.75561684,103620.0,103610.0,0.02183511]
[1747458590783,0.75561684,103620.0,103610.0,0.02583511]
[1747458591087,0.75561684,103620.0,103610.0,0.07711255]
[1747458591289,0.75561684,103620.0,103610.0,0.02983511]
[1747458591780,0.75561684,103620.0,103610.0,0.23783511]
[1747458593493,0.69313232,103620.0,103610.0,0.31573511]
[1747458594488,0.65006309,103620.0,103610.0,0.31573511]
[1747458595293,0.77062005,103620.0,103610.0,0.36403077]
[1747458596294,0.70813553,103620.0,103610.0,0.36403077]
[1747458596494,0.73282005,103620.0,103610.0,0.36403077]
[1747458596797,0.69372005,103620.0,103610.0,0.55699727]
[1747458597099,0.69372005,103620.0,103610.0,0.73699727]
[1747458598091,0.73302005,103620.0,103610.0,0.73699727]
[1747458599189,0.73302005,103620.0,103610.0,0.77963538]
[1747458599892,0.67053553,103620.0,103610.0,0.8421199]
[1747458600196,0.41002526,103620.0,103610.0,1.14043538]
[1747458600488,0.41002526,103620.0,103610.0,1.31074906]
[1747458600686,0.41002526,103620.0,103610.0,1.45074906]
[1747458600887,0.41002526,103620.0,103610.0,1.08994906]
[1747458601088,0.41002526,103620.0,103610.0,1.45074906]
[1747458601593,0.41002526,103620.0,103610.0,1.35423706]
[1747458601792,0.44019557,103620.0,103610.0,1.45969822]
[1747458602191,0.24724727,103620.0,103610.0,1.45969822]
[1747458602391,0.24724727,103620.0,103610.0,1.61869474]
[1747458604599,0.24724727,103620.0,103610.0,1.52218274]
[1747458604803,0.24724727,103620.0,103610.0,1.61869474]
[1747458605401,0.21033614,103620.0,103610.0,1.63283241]
[1747458606599,0.10476304,103620.0,103610.0,1.63283241]
[1747458606795,0.10476304,103620.0,103610.0,1.70649722]
[1747458607001,0.06170053,103620.0,103610.0,1.70649722]
[1747458609202,0.06170053,103620.0,103610.0,1.64623528]
[1747458609501,0.06170053,103620.0,103610.0,1.54972328]
[1747458609702,0.10220053,103620.0,103610.0,1.54972328]
[1747458610600,0.10220053,103620.0,103610.0,1.75752328]
[1747458612701,0.10220053,103620.0,103610.0,1.83118513]
[1747458616704,0.14120053,103620.0,103610.0,1.83118513]
[1747458618498,0.14120053,103620.0,103610.0,1.89144707]
[1747458621008,0.14120053,103620.0,103610.0,1.82896255]
[1747458621207,0.14120053,103620.0,103610.0,1.89144707]
[1747458621508,0.14120053,103620.0,103610.0,1.81778522]
[1747458623501,0.18180053,103620.0,103610.0,1.81778522]
[1747458623898,0.18180053,103620.0,103610.0,1.45698522]
[1747458624103,0.18180053,103620.0,103610.0,1.81778522]
[1747458626511,0.14489012,103620.0,103610.0,1.72984587]
[1747458628718,0.14489012,103620.0,103610.0,1.80356339]
[1747458629313,0.24141012,103620.0,103610.0,1.80356339]
[1747458629905,0.24141012,103620.0,103610.0,1.75836417]
[1747458630111,0.30170103,103620.0,103610.0,1.75836417]
[1747458630713,0.25863887,103620.0,103610.0,1.75836417]
[1747458631211,0.25863887,103620.0,103610.0,1.51587965]
[1747458631416,0.25863887,103620.0,103610.0,1.57836417]
[1747458632617,0.25863887,103620.0,103610.0,1.66851574]
[1747458634311,0.25863887,103620.0,103610.0,1.66839574]
[1747458635628,0.25863887,103620.0,103610.0,1.60591122]
[1747458635813,0.25863887,103620.0,103610.0,1.66839574]
[1747458637518,0.25863887,103620.0,103610.0,1.87356401]
[1747458638020,0.21557673,103620.0,103610.0,1.87356401]
[1747458638321,0.21557673,103620.0,103610.0,1.81107949]
[1747458638523,0.21557673,103620.0,103610.0,1.87356401]
[1747458638723,0.21557673,103620.0,103610.0,1.45788401]
[1747458638922,0.21557673,103620.0,103610.0,1.87320401]
[1747458640626,0.21557673,103620.0,103610.0,1.76805406]
[1747458641123,0.25897673,103620.0,103610.0,1.76805406]
[1747458644723,0.25897673,103620.0,103610.0,1.87320401]
[1747458649327,0.22206647,103620.0,103610.0,1.87320401]
[1747458656132,0.22206647,103620.0,103610.0,1.76805406]
[1747458656338,0.17900453,103620.0,103610.0,1.76805406]
[1747458659133,0.17900453,103620.0,103610.0,1.68225757]
[1747458662835,0.17900453,103620.0,103610.0,1.87320401]
[1747458664137,0.13594252,103620.0,103610.0,1.87320401]
[1747458667040,0.13594252,103620.0,103610.0,1.51240401]
[1747458667245,0.13594252,103620.0,103610.0,1.87308401]
[1747458669441,0.09903266,103620.0,103610.0,1.87308401]
[1747458672038,0.09903266,103620.0,103610.0,1.66556401]
[1747458672342,0.09903266,103620.0,103610.0,1.87308401]
[1747458673344,0.19555266,103620.0,103610.0,1.87308401]
[1747458674443,0.19555266,103620.0,103610.0,1.68213757]
[1747458674745,0.15249086,103620.0,103610.0,1.68213757]
[1747458676950,0.15249086,103620.0,103610.0,1.78728752]
[1747458680852,0.15249086,103620.0,103610.0,1.68213757]
[1747458682344,0.15249086,103620.0,103610.0,1.32133757]
[1747458682744,0.15249086,103620.0,103610.0,1.68213757]
[1747458684453,0.15249086,103620.0,103610.0,1.32133757]
[1747458684654,0.15249086,103620.0,103610.0,1.68213757]
[1747458686554,0.15249086,103620.0,103610.0,1.10471794]
[1747458686752,0.19669086,103620.0,103610.0,1.15891794]
[1747458686952,0.38963916,103620.0,103610.0,0.89280246]
[1747458687161,0.56963916,103620.0,103610.0,1.30780246]
[1747458687357,0.66007552,103620.0,103610.0,1.26286363]
[1747458687556,0.46712722,103620.0,103610.0,1.26286363]
[1747458687759,0.46712722,103620.0,103610.0,1.30456363]
[1747458688153,0.46712722,103620.0,103610.0,1.30056363]
[1747458688355,0.46712722,103620.0,103610.0,0.88756363]
[1747458688553,0.46712722,103620.0,103610.0,1.66332363]
[1747458689055,0.46712722,103620.0,103610.0,1.66132363]
[1747458689359,0.28712722,103620.0,103610.0,1.66132363]
[1747458689959,0.25021543,103620.0,103610.0,1.66132363]
[1747458691968,0.15977907,103620.0,103610.0,1.66132363]
[1747458692155,0.15977907,103620.0,103610.0,1.39143911]
[1747458692363,0.15977907,103620.0,103610.0,1.30052363]
[1747458692655,0.35272737,103620.0,103610.0,0.96977951]
[1747458692861,0.35272737,103620.0,103610.0,0.77681261]
[1747458693163,0.53272737,103620.0,103610.0,0.96977951]
[1747458693362,0.53272737,103620.0,103610.0,0.77681261]
[1747458693664,0.53272737,103620.0,103610.0,0.96977951]
[1747458694263,0.53272737,103620.0,103610.0,1.03226403]
[1747458694464,0.53272737,103620.0,103610.0,1.03026403]
[1747458694670,0.62316373,103620.0,103610.0,0.96800209]
[1747458694866,0.62316373,103620.0,103610.0,1.01490209]
[1747458697568,0.62316373,103620.0,103610.0,0.80750209]
[1747458697767,0.62316373,103620.0,103610.0,1.01490209]
[1747458698065,0.62316373,103620.0,103610.0,0.76060209]
[1747458698368,0.62316373,103620.0,103610.0,0.90547757]
[1747458698568,0.68564825,103620.0,103610.0,0.29775067]
[1747458698768,1.04644825,103620.0,103610.0,0.50511067]
[1747458699072,1.04644825,103620.0,103610.0,0.69807757]
[1747458699574,1.00338339,103620.0,103610.0,0.69807757]
[1747458699871,0.94089887,103620.0,103610.0,0.69807757]
[1747458700770,0.94089887,103620.0,103610.0,0.65286483]
[1747458702072,0.58009887,103620.0,103610.0,0.65286483]
[1747458702271,0.58009887,103620.0,103610.0,0.76004935]
[1747458705776,0.58009887,103620.0,103610.0,0.56708245]
[1747458705974,0.94089887,103620.0,103610.0,0.50459793]
[1747458706376,0.94089887,103620.0,103610.0,0.29723793]
[1747458706580,0.94089887,103620.0,103610.0,0.71195793]
[1747458707180,0.94089887,103620.0,103610.0,0.90492483]
[1747458708777,0.94089887,103620.0,103610.0,0.77444245]
[1747458708975,0.94089887,103620.0,103610.0,0.96740935]
[1747458709177,0.94089887,103620.0,103610.0,0.77444245]
[1747458709371,0.94089887,103620.0,103610.0,0.71195793]
[1747458711379,0.90398439,103620.0,103610.0,0.71195793]
[1747458712581,0.54318439,103620.0,103610.0,0.71195793]
[1747458712780,0.90398439,103620.0,103610.0,0.71195793]
[1747458713474,0.90398439,103620.0,103610.0,0.90492483]
[1747458714176,0.90398439,103620.0,103610.0,0.71195793]
[1747458716283,0.72398439,103620.0,103610.0,0.71191793]
[1747458716868,0.78646891,103620.0,103610.0,0.71191793]
[1747458717067,0.96646891,103620.0,103610.0,0.71191793]
[1747458718189,0.96646891,103620.0,103610.0,0.75571793]
[1747458718980,0.96646891,103620.0,103610.0,0.71191793]
[1747458720482,0.90398439,103620.0,103610.0,0.96736935]
[1747458720882,0.90398439,103620.0,103610.0,1.05516935]
[1747458721185,0.90398439,103620.0,103610.0,0.44752245]
[1747458721387,0.54318439,103620.0,103610.0,0.86200245]
[1747458722076,0.36318439,103620.0,103610.0,0.86200245]
[1747458722587,0.36318439,103620.0,103610.0,0.99248483]
[1747458722982,0.36318439,103620.0,103610.0,0.79951793]
[1747458726586,0.27274803,103620.0,103610.0,0.79951793]
[1747458730092,0.27274803,103620.0,103610.0,0.99248483]
[1747458730591,0.2296807,103620.0,103610.0,0.99248483]
[1747458732793,0.2296807,103620.0,103610.0,0.79951793]
[1747458733097,0.19276598,103620.0,103610.0,0.79951793]
[1747458733794,0.31332294,103620.0,103610.0,0.79951793]
[1747458734295,0.31332294,103620.0,103610.0,0.99248483]
[1747458736199,0.49332294,103620.0,103610.0,0.78524483]
[1747458736393,0.49332294,103620.0,103610.0,0.99244483]
[1747458737198,0.31332294,103620.0,103610.0,0.89591483]
[1747458737804,0.31332294,103620.0,103610.0,0.49574793]
[1747458738001,0.31332294,103620.0,103610.0,0.82391188]
[1747458738002,0.78060746,103620.0,103610.0,0.82391188]
[1747458738191,0.78060746,103620.0,103610.0,0.40951188]
[1747458738385,0.78060746,103620.0,103610.0,0.61667188]
[1747458738995,0.78060746,103620.0,103610.0,0.57267188]
[1747458739300,0.96060746,103620.0,103610.0,0.57267188]
[1747458739798,0.96060746,103620.0,103610.0,0.61498006]
[1747458740199,0.96060746,103620.0,103610.0,0.51845006]
[1747458741204,0.96060746,103620.0,103610.0,0.72569006]
[1747458741498,1.00270746,103620.0,103610.0,0.72569006]
[1747458742001,1.00270746,103620.0,103610.0,0.65188407]
[1747458743493,0.94022294,103620.0,103610.0,0.65188407]
[1747458743805,1.00270746,103620.0,103610.0,0.65188407]
[1747458744306,1.00270746,103620.0,103610.0,0.60957589]
[1747458745505,1.00270746,103620.0,103610.0,0.40233589]
[1747458746509,1.06519198,103620.0,103610.0,0.10667589]
[1747458746701,1.00270746,103620.0,103610.0,0.40189589]
[1747458746901,1.06519198,103620.0,103610.0,0.40189589]
[1747458747101,1.00270746,103620.0,103610.0,0.40189589]
[1747458747303,1.06519198,103620.0,103610.0,0.09824589]
[1747458747509,1.00270746,103620.0,103610.0,0.30536589]
[1747458747805,1.00270746,103620.0,103610.0,0.09824589]
[1747458748107,0.1929669,103610.0,103600.0,0.60267274]
[1747458748308,0.70655142,103610.0,103600.0,0.38959274]
[1747458748504,0.70655142,103610.0,103600.0,0.18247274]
[1747458748810,0.70655142,103610.0,103600.0,0.38959274]
[1747458749308,0.88655142,103610.0,103600.0,0.39159274]
[1747458749704,0.88655142,103610.0,103600.0,0.43992672]
[1747458750213,1.00710838,103610.0,103600.0,0.39471398]
[1747458750607,1.00710838,103610.0,103600.0,0.39671398]
[1747458751211,1.00710838,103610.0,103600.0,0.30017398]
[1747458752208,1.00710838,103610.0,103600.0,0.26509613]
[1747458754619,1.00710838,103610.0,103600.0,0.30919613]
[1747458755315,0.64630838,103610.0,103600.0,0.35664218]
[1747458755519,1.00710838,103610.0,103600.0,0.39934218]
[1747458757120,0.64630838,103610.0,103600.0,0.39934218]
[1747458757311,1.00710838,103610.0,103600.0,0.39934218]
[1747458758816,0.94462386,103610.0,103600.0,0.44224218]
[1747458759018,0.89912386,103610.0,103600.0,0.44224218]
[1747458759217,0.71912386,103610.0,103600.0,0.44224218]
[1747458759716,0.76632386,103610.0,103600.0,0.44224218]
[1747458760509,0.82880838,103610.0,103600.0,0.44224218]
[1747458760917,0.87130838,103610.0,103600.0,0.44224218]
[1747458761126,0.87130838,103610.0,103600.0,0.4456882]
[1747458761323,0.87130838,103610.0,103600.0,0.1516082]
[1747458761825,0.84097562,103610.0,103600.0,0.1516082]
[1747458762016,0.84097562,103610.0,103600.0,0.1956082]
[1747458762224,0.97790131,103610.0,103600.0,0.0990582]
[1747458763124,0.79790131,103610.0,103600.0,0.0990582]
[1747458763922,0.79790131,103610.0,103600.0,0.4991637]
[1747458764119,0.79790131,103610.0,103600.0,0.3061782]
[1747458764322,0.73541679,103610.0,103600.0,0.3501782]
[1747458764924,0.76574955,103610.0,103600.0,0.42117515]
[1747458766521,0.40494955,103610.0,103600.0,0.42117515]
[1747458766822,0.76574955,103610.0,103600.0,0.42117515]
[1747458769428,0.46743407,103610.0,103600.0,0.42117515]
[1747458769629,0.82823407,103610.0,103600.0,0.42117515]
[1747458771931,0.78573407,103610.0,103600.0,0.42117515]
[1747458772230,0.36244955,103610.0,103600.0,0.67664517]
[1747458773029,0.45276507,103610.0,103600.0,0.67664517]
[1747458773230,0.45276507,103610.0,103600.0,0.76009517]
[1747458775133,0.33220811,103610.0,103600.0,0.76009517]
[1747458775831,0.33220811,103610.0,103600.0,0.56710967]
[1747458776536,0.33220811,103610.0,103600.0,0.61496102]
[1747458776735,0.33220811,103610.0,103600.0,0.66016102]
[1747458777139,0.33220811,103610.0,103600.0,0.85314652]
[1747458778041,0.36244955,103610.0,103600.0,0.85314652]
[1747458780437,0.36244955,103610.0,103600.0,0.92690111]
[1747458781138,0.40874955,103610.0,103600.0,0.92690111]
[1747458784237,0.40874955,103610.0,103600.0,0.83035111]
[1747458784442,0.40874955,103610.0,103600.0,0.694112]
[1747458784748,0.40874955,103610.0,103600.0,0.75659652]
[1747458787046,0.40874955,103610.0,103600.0,0.96359652]
[1747458787443,0.40874955,103610.0,103600.0,0.945512]
[1747458787939,0.76954955,103610.0,103600.0,0.945512]
[1747458795351,0.76954955,103610.0,103600.0,0.848962]
[1747458795855,0.72647745,103610.0,103600.0,0.848962]
[1747458797753,0.72647745,103610.0,103600.0,0.6559765]
[1747458798153,0.72647745,103610.0,103600.0,0.91045677]
[1747458802657,0.72647745,103610.0,103600.0,0.92271659]
[1747458804363,0.72647745,103610.0,103600.0,0.92259659]
[1747458805360,0.72647745,103610.0,103600.0,1.03304659]
[1747458808649,0.72647745,103610.0,103600.0,0.959292]
[1747458809161,0.57335696,103610.0,103600.0,0.98772104]
[1747458809358,0.16775696,103610.0,103600.0,1.60224042]
[1747458809554,0.36072376,103610.0,103600.0,1.70224042]
[1747458809859,0.16775696,103610.0,103600.0,1.70224042]
[1747458810049,0.21125696,103610.0,103600.0,1.70224042]
[1747458810245,0.50075376,103610.0,103600.0,1.70224042]
[1747458810462,0.50075376,103610.0,103600.0,1.60224042]
[1747458811059,0.44047184,103610.0,103600.0,1.75265393]
[1747458811566,0.44047184,103610.0,103600.0,1.83558078]
[1747458811860,0.40355773,103610.0,103600.0,1.83558078]
[1747458812765,0.40355773,103610.0,103600.0,1.47478078]
[1747458812967,0.40355773,103610.0,103600.0,1.83558078]
[1747458813464,0.30021624,103610.0,103600.0,1.7906039]
[1747458816076,0.10724944,103610.0,103600.0,1.7906039]
[1747458817177,0.10724944,103610.0,103600.0,1.7905639]
[1747458818879,0.10724944,103610.0,103600.0,1.6903639]
[1747458819080,0.10724944,103610.0,103600.0,1.2767239]
[1747458819281,0.10724944,103610.0,103600.0,1.6903639]
[1747458819780,0.10724944,103610.0,103600.0,1.63010196]
[1747458819974,0.30021634,103610.0,103600.0,1.42330196]
[1747458820277,0.30021634,103610.0,103600.0,1.17541744]
[1747458820472,0.34571634,103610.0,103600.0,1.21957744]
[1747458820673,0.34571634,103610.0,103600.0,0.62350742]
[1747458820868,0.34571634,103610.0,103600.0,0.60969292]
[1747458821074,0.70651634,103610.0,103600.0,0.86253839]
[1747458821979,0.34571634,103610.0,103600.0,0.86253839]
[1747458822280,0.34571634,103610.0,103600.0,0.97302291]
[1747458822881,0.40599138,103610.0,103600.0,0.92784822]
[1747458823074,0.49640395,103610.0,103600.0,0.92784822]
[1747458823883,0.49640395,103610.0,103600.0,0.91859714]
[1747458824181,0.49640395,103610.0,103600.0,1.09859714]
[1747458824385,0.49640395,103610.0,103600.0,1.1040393]
[1747458825085,0.49640395,103610.0,103600.0,0.9240393]
[1747458825482,0.49640395,103610.0,103600.0,0.91859714]
[1747458827396,0.49640395,103610.0,103600.0,0.64931262]
[1747458827583,0.85720395,103610.0,103600.0,0.85611262]
[1747458827777,0.49640395,103610.0,103600.0,0.85611262]
[1747458827976,0.49640395,103610.0,103600.0,0.80807262]
[1747458829486,0.85720395,103610.0,103600.0,0.80807262]
[1747458830082,0.81413297,103610.0,103600.0,0.80807262]
[1747458830486,0.81413297,103610.0,103600.0,0.72811262]
[1747458832278,0.81413297,103610.0,103600.0,0.71584103]
[1747458833190,0.85743297,103610.0,103600.0,0.76184103]
[1747458835790,0.85743297,103610.0,103600.0,0.82432555]
[1747458840899,0.49663297,103610.0,103600.0,0.82432555]
[1747458841199,0.85743297,103610.0,103600.0,0.82432555]
[1747458842199,0.30366607,103610.0,103600.0,0.82416555]
[1747458842402,0.49663297,103610.0,103600.0,0.82416555]
[1747458843294,0.49663297,103610.0,103600.0,0.86746555]
[1747458845399,0.45971575,103610.0,103600.0,0.94882584]
[1747458847198,0.45971575,103610.0,103600.0,0.99472584]
[1747458847699,0.45971575,103610.0,103600.0,1.0369853]
[1747458849601,0.39944071,103610.0,103600.0,1.0369853]
[1747458850896,0.39944071,103610.0,103600.0,1.1189805]
[1747458852303,0.39944071,103610.0,103600.0,1.16415519]
[1747458852698,0.39944071,103610.0,103600.0,0.95743519]
[1747458852901,0.39944071,103610.0,103600.0,1.16411519]
[1747458853507,0.39944071,103610.0,103600.0,1.10163067]
[1747458853696,0.39944071,103610.0,103600.0,1.16411519]
[1747458855303,0.39944071,103610.0,103600.0,1.1189405]
[1747458858902,0.39944071,103610.0,103600.0,1.05645598]
[1747458859096,0.39944071,103610.0,103600.0,1.0730405]
[1747458859306,0.39944071,103610.0,103600.0,0.76057598]
[1747458859611,0.76024071,103610.0,103600.0,0.55385598]
[1747458860006,0.76024071,103610.0,103600.0,0.96721598]
[1747458860204,0.77965463,103610.0,103600.0,0.96721598]
[1747458860408,0.77965463,103610.0,103600.0,0.92121598]
[1747458860808,0.77965463,103610.0,103600.0,0.92665814]
[1747458861009,0.71717011,103610.0,103600.0,0.88439868]
[1747458861707,0.7473145,103610.0,103600.0,0.92670778]
[1747458861907,0.80979902,103610.0,103600.0,0.31492012]
[1747458862109,0.80979902,103610.0,103600.0,0.47925102]
[1747458862314,0.80979902,103610.0,103600.0,0.17606102]
[1747458862507,0.80979902,103610.0,103600.0,0.36904652]
[1747458863113,0.98979902,103610.0,103600.0,0.36904652]
[1747458864134,0.98979902,103610.0,103600.0,0.28705132]
[1747458864911,1.35059902,103610.0,103600.0,0.28705132]
[1747458865520,1.35059902,103610.0,103600.0,0.33410822]
[1747458866226,1.17059902,103610.0,103600.0,0.33410822]
[1747458869121,1.17059902,103610.0,103600.0,0.12891402]
[1747458872325,0.80979902,103610.0,103600.0,0.12891402]
[1747458873225,0.80979902,103610.0,103600.0,0.03236402]